[Event "Live Chess"]
[Site "Chess.com"]
[Date "2024.06.01"]
[Round "-"]
[White "IanCalvert2"]
[Black "Grace6363"]
[Result "0-1"]
[WhiteElo "1487"]
[BlackElo "1144"]
[TimeControl "300"]
[EndTime "10:38:27 PDT"]
[Termination "Grace6363 won by checkmate"]

1. b3 {[%clk 0:04:53]} 1... c5 {[%clk 0:04:56.3]} 2. Bb2 {[%clk 0:04:50.5]} 2...
f6 {[%clk 0:04:55.6]} 3. e3 {[%clk 0:04:40.7]} 3... d5 {[%clk 0:04:54.7]} 4. Nf3
{[%clk 0:04:34.2]} 4... Nc6 {[%clk 0:04:52]} 5. d4 {[%clk 0:04:31]} 5... Qb6
{[%clk 0:04:46]} 6. c4 {[%clk 0:04:14.8]} 6... cxd4 {[%clk 0:04:42.4]} 7. Nxd4
{[%clk 0:04:10.1]} 7... Nxd4 {[%clk 0:04:39.5]} 8. Qxd4 {[%clk 0:04:04.7]} 8...
Qxd4 {[%clk 0:04:29.7]} 9. exd4 {[%clk 0:04:02.4]} 9... Be6 {[%clk 0:04:23.3]}
10. Nc3 {[%clk 0:03:59]} 10... dxc4 {[%clk 0:04:17.1]} 11. Bxc4 {[%clk
0:03:52.7]} 11... Bxc4 {[%clk 0:04:14.1]} 12. bxc4 {[%clk 0:03:51.1]} 12...
O-O-O {[%clk 0:04:13.2]} 13. O-O-O {[%clk 0:03:47.5]} 13... e6 {[%clk
0:04:09.2]} 14. Rhe1 {[%clk 0:03:42.1]} 14... Re8 {[%clk 0:03:50.7]} 15. d5
{[%clk 0:03:33.1]} 15... e5 {[%clk 0:03:49.6]} 16. Ne4 {[%clk 0:03:31.2]} 16...
Bb4 {[%clk 0:03:42.5]} 17. Bc3 {[%clk 0:03:25.9]} 17... a5 {[%clk 0:03:38.1]}
18. Bxb4 {[%clk 0:03:19.9]} 18... axb4 {[%clk 0:03:37.2]} 19. Kc2 {[%clk
0:03:18.9]} 19... Nh6 {[%clk 0:03:35.3]} 20. Kb3 {[%clk 0:03:11.6]} 20... Kd7
{[%clk 0:03:29.2]} 21. Kxb4 {[%clk 0:03:07.1]} 21... b6 {[%clk 0:03:25.1]} 22.
c5 {[%clk 0:02:49.6]} 22... bxc5+ {[%clk 0:03:22.4]} 23. Nxc5+ {[%clk
0:02:48.4]} 23... Kd6 {[%clk 0:03:19.4]} 24. Ne4+ {[%clk 0:02:46.5]} 24... Kd7
{[%clk 0:03:16.2]} 25. a4 {[%clk 0:02:35.3]} 25... Rb8+ {[%clk 0:03:15.1]} 26.
Ka3 {[%clk 0:02:33.2]} 26... Rhc8 {[%clk 0:03:13.5]} 27. Rb1 {[%clk 0:02:28.3]}
27... Nf5 {[%clk 0:03:08.7]} 28. Rxb8 {[%clk 0:02:20.6]} 28... Rxb8 {[%clk
0:03:07.4]} 29. Rd1 {[%clk 0:02:06.6]} 29... Nd4 {[%clk 0:03:05.2]} 30. Nc3
{[%clk 0:01:55.4]} 30... Rb3+ {[%clk 0:03:00.4]} 31. Ka2 {[%clk 0:01:49.9]}
31... Rxc3 {[%clk 0:02:59.5]} 32. Rb1 {[%clk 0:01:45.3]} 32... Rc7 {[%clk
0:02:47.6]} 33. Ka3 {[%clk 0:01:37.6]} 33... Kd6 {[%clk 0:02:44]} 34. Rb6+
{[%clk 0:01:21]} 34... Kxd5 {[%clk 0:02:41]} 35. a5 {[%clk 0:01:19.4]} 35... Ra7
{[%clk 0:02:37.4]} 36. Kb4 {[%clk 0:01:15.5]} 36... Nc6+ {[%clk 0:02:32.4]} 37.
Kb5 {[%clk 0:01:13.1]} 37... Rxa5# {[%clk 0:02:25.5]} 0-1

[Event "Live Chess"]
[Site "Chess.com"]
[Date "2024.06.01"]
[Round "-"]
[White "willc-h99"]
[Black "ShanthamGrarks"]
[Result "1-0"]
[WhiteElo "2642"]
[BlackElo "1925"]
[TimeControl "300"]
[EndTime "10:38:48 PDT"]
[Termination "willc-h99 won by resignation"]

1. Nc3 {[%clk 0:04:58.2]} 1... e6 {[%clk 0:04:53.3]} 2. d4 {[%clk 0:04:55.8]}
2... d5 {[%clk 0:04:50.9]} 3. Bf4 {[%clk 0:04:54.2]} 3... Nf6 {[%clk 0:04:48.5]}
4. e3 {[%clk 0:04:51.8]} 4... Bd6 {[%clk 0:04:47.7]} 5. Nf3 {[%clk 0:04:33.5]}
5... Bxf4 {[%clk 0:04:43.4]} 6. exf4 {[%clk 0:04:32.3]} 6... c6 {[%clk
0:04:42.7]} 7. Ne5 {[%clk 0:04:30.2]} 7... O-O {[%clk 0:04:39.1]} 8. g4 {[%clk
0:04:24.9]} 8... Ne4 {[%clk 0:04:33.7]} 9. Bd3 {[%clk 0:04:07.2]} 9... Nxc3
{[%clk 0:04:25]} 10. bxc3 {[%clk 0:04:03.1]} 10... f6 {[%clk 0:04:24.5]} 11. Nf3
{[%clk 0:03:36.2]} 11... Qc7 {[%clk 0:04:18]} 12. Qd2 {[%clk 0:03:33.2]} 12...
Nd7 {[%clk 0:04:14.6]} 13. Rg1 {[%clk 0:03:19.3]} 13... e5 {[%clk 0:04:13.4]}
14. fxe5 {[%clk 0:03:00.2]} 14... fxe5 {[%clk 0:04:11.4]} 15. Ng5 {[%clk
0:02:48.3]} 15... e4 {[%clk 0:03:54.3]} 16. Ne6 {[%clk 0:02:47]} 16... Qd6
{[%clk 0:03:44.2]} 17. Nxf8 {[%clk 0:02:43.5]} 17... exd3 {[%clk 0:03:40.5]} 18.
Nxd7 {[%clk 0:02:40.3]} 18... Bxd7 {[%clk 0:03:36.9]} 19. Qxd3 {[%clk
0:02:24.9]} 19... Re8+ {[%clk 0:03:32.7]} 20. Kf1 {[%clk 0:02:23.4]} 20... Qxh2
{[%clk 0:03:25.4]} 21. Qg3 {[%clk 0:02:18.1]} 21... Qh6 {[%clk 0:03:21.1]} 22.
g5 {[%clk 0:02:13.2]} 22... Qg6 {[%clk 0:03:19.5]} 23. Re1 {[%clk 0:02:00.4]}
23... Rf8 {[%clk 0:03:12.6]} 24. Kg2 {[%clk 0:01:23.7]} 24... Qxc2 {[%clk
0:03:01]} 25. Re7 {[%clk 0:01:01.9]} 25... Bf5 {[%clk 0:02:33.8]} 26. Rf1 {[%clk
0:00:51.8]} 26... Be4+ {[%clk 0:02:28]} 27. Kg1 {[%clk 0:00:51]} 27... Qe2
{[%clk 0:02:19.2]} 28. Rxb7 {[%clk 0:00:44.5]} 28... Qh5 {[%clk 0:02:17.4]} 29.
f3 {[%clk 0:00:32.7]} 29... Bd3 {[%clk 0:02:06.6]} 30. Re1 {[%clk 0:00:27.5]}
30... h6 {[%clk 0:01:40]} 31. Rb8 {[%clk 0:00:24]} 31... Rxb8 {[%clk 0:01:34.9]}
32. Qxb8+ {[%clk 0:00:22.8]} 32... Kh7 {[%clk 0:01:34.3]} 33. Qg3 {[%clk
0:00:21.4]} 33... Bg6 {[%clk 0:01:27.9]} 34. Re5 {[%clk 0:00:20.3]} 34... hxg5
{[%clk 0:01:15.6]} 35. Rxg5 {[%clk 0:00:18.4]} 35... Qh6 {[%clk 0:01:15.5]} 36.
f4 {[%clk 0:00:16.9]} 36... Be4 {[%clk 0:01:12.8]} 37. Qh2 {[%clk 0:00:16.5]}
37... Qxh2+ {[%clk 0:01:10.3]} 38. Kxh2 {[%clk 0:00:16.4]} 38... g6 {[%clk
0:01:08.8]} 39. Re5 {[%clk 0:00:16.3]} 39... Kh6 {[%clk 0:01:07.6]} 40. Re7
{[%clk 0:00:16.2]} 40... a6 {[%clk 0:01:06.2]} 41. Kg3 {[%clk 0:00:15.3]} 41...
Bd3 {[%clk 0:01:05.2]} 42. Re6 {[%clk 0:00:14.1]} 42... Bb5 {[%clk 0:01:03.1]}
43. f5 {[%clk 0:00:13.5]} 43... Kg7 {[%clk 0:01:02.5]} 44. Rxg6+ {[%clk
0:00:12.4]} 44... Kf7 {[%clk 0:01:02.1]} 45. Kf4 {[%clk 0:00:11.8]} 45... Bd3
{[%clk 0:01:01]} 46. Ke5 {[%clk 0:00:11.7]} 46... c5 {[%clk 0:00:56.9]} 47. Rxa6
{[%clk 0:00:10.6]} 47... Bxa6 {[%clk 0:00:54.6]} 48. dxc5 {[%clk 0:00:09.6]}
48... Bc8 {[%clk 0:00:53.2]} 49. f6 {[%clk 0:00:07.7]} 49... Be6 {[%clk
0:00:49.6]} 50. a4 {[%clk 0:00:07.2]} 50... Bc8 {[%clk 0:00:47.9]} 51. a5 {[%clk
0:00:07.1]} 51... Ke8 {[%clk 0:00:45.9]} 52. c6 {[%clk 0:00:06.6]} 52... Kf7
{[%clk 0:00:43.8]} 53. c7 {[%clk 0:00:06]} 53... Ke8 {[%clk 0:00:41.9]} 54. Kxd5
{[%clk 0:00:05.5]} 54... Kd7 {[%clk 0:00:39.1]} 55. Ke5 {[%clk 0:00:05.4]} 55...
Kxc7 {[%clk 0:00:37.6]} 56. f7 {[%clk 0:00:05.1]} 56... Kc6 {[%clk 0:00:35.7]}
57. f8=Q {[%clk 0:00:05]} 57... Bd7 {[%clk 0:00:34.8]} 58. Qd6+ {[%clk
0:00:04.9]} 58... Kb5 {[%clk 0:00:33.2]} 59. Qxd7+ {[%clk 0:00:04.8]} 59... Kc4
{[%clk 0:00:29.9]} 60. Qd4+ {[%clk 0:00:04.7]} 60... Kb3 {[%clk 0:00:29]} 61.
Qb4+ {[%clk 0:00:04.6]} 61... Kc2 {[%clk 0:00:28.2]} 62. c4 {[%clk 0:00:04.5]}
62... Kd3 {[%clk 0:00:27.6]} 63. c5 {[%clk 0:00:04.4]} 63... Ke3 {[%clk
0:00:26.7]} 64. Qd4+ {[%clk 0:00:04.3]} 64... Kf3 {[%clk 0:00:26]} 65. Qe3+
{[%clk 0:00:03.8]} 65... Kxe3 {[%clk 0:00:23.8]} 66. c6 {[%clk 0:00:03.7]} 66...
Kd3 {[%clk 0:00:23.3]} 67. c7 {[%clk 0:00:03.6]} 67... Kc4 {[%clk 0:00:22.4]}
68. c8=Q+ {[%clk 0:00:03.5]} 68... Kd3 {[%clk 0:00:21.8]} 69. a6 {[%clk
0:00:03.4]} 69... Ke3 {[%clk 0:00:20.8]} 70. a7 {[%clk 0:00:03.3]} 70... Kf3
{[%clk 0:00:20.4]} 71. a8=Q+ {[%clk 0:00:03.2]} 1-0

[Event "Live Chess"]
[Site "Chess.com"]
[Date "2024.06.01"]
[Round "-"]
[White "Rusty_Bridges"]
[Black "degringolade64"]
[Result "0-1"]
[WhiteElo "1496"]
[BlackElo "2049"]
[TimeControl "300"]
[EndTime "10:39:11 PDT"]
[Termination "degringolade64 won by resignation"]

1. e4 {[%clk 0:04:55.1]} 1... e5 {[%clk 0:04:58.4]} 2. f4 {[%clk 0:04:53.5]}
2... exf4 {[%clk 0:04:57.1]} 3. Nf3 {[%clk 0:04:51.8]} 3... d6 {[%clk
0:04:54.5]} 4. Bc4 {[%clk 0:04:51.3]} 4... h6 {[%clk 0:04:52.4]} 5. d4 {[%clk
0:04:49.9]} 5... g5 {[%clk 0:04:48.9]} 6. g3 {[%clk 0:04:47.3]} 6... Nc6 {[%clk
0:04:39.8]} 7. gxf4 {[%clk 0:04:38.5]} 7... g4 {[%clk 0:04:38.1]} 8. O-O {[%clk
0:04:23.1]} 8... gxf3 {[%clk 0:04:34.1]} 9. Rxf3 {[%clk 0:04:20.9]} 9... Bg4
{[%clk 0:04:28.7]} 10. Be3 {[%clk 0:04:07]} 10... Qh4 {[%clk 0:04:21.4]} 11. d5
{[%clk 0:03:58.2]} 11... Nce7 {[%clk 0:04:15.5]} 12. Bd4 {[%clk 0:03:55.7]}
12... Nf6 {[%clk 0:04:01.9]} 13. Qf1 {[%clk 0:03:42.6]} 13... Bxf3 {[%clk
0:03:57.9]} 14. Qxf3 {[%clk 0:03:41.1]} 14... Rg8+ {[%clk 0:03:57.6]} 15. Kh1
{[%clk 0:03:34.1]} 15... Qe1+ {[%clk 0:03:31.6]} 16. Bf1 {[%clk 0:03:31.3]}
16... Qxe4 {[%clk 0:03:28.9]} 0-1

[Event "Live Chess"]
[Site "Chess.com"]
[Date "2024.06.01"]
[Round "-"]
[White "nitrofish07"]
[Black "Inglaterra"]
[Result "0-1"]
[WhiteElo "2131"]
[BlackElo "2046"]
[TimeControl "300"]
[EndTime "10:39:19 PDT"]
[Termination "Inglaterra won by resignation"]

1. d4 {[%clk 0:04:58.5]} 1... d5 {[%clk 0:04:58.4]} 2. c4 {[%clk 0:04:57.4]}
2... e6 {[%clk 0:04:57.6]} 3. g3 {[%clk 0:04:56.6]} 3... Nf6 {[%clk 0:04:56.1]}
4. Bg2 {[%clk 0:04:55.5]} 4... Bb4+ {[%clk 0:04:51.8]} 5. Nd2 {[%clk 0:04:54.4]}
5... O-O {[%clk 0:04:49.1]} 6. Nf3 {[%clk 0:04:53.7]} 6... b6 {[%clk 0:04:43.6]}
7. O-O {[%clk 0:04:50.7]} 7... Bb7 {[%clk 0:04:39.3]} 8. Ne5 {[%clk 0:04:50.1]}
8... Bd6 {[%clk 0:04:28.1]} 9. Qc2 {[%clk 0:04:46.5]} 9... Nbd7 {[%clk
0:04:18.3]} 10. Nxd7 {[%clk 0:04:43.9]} 10... Qxd7 {[%clk 0:04:12.4]} 11. e4
{[%clk 0:04:35.6]} 11... dxe4 {[%clk 0:04:10]} 12. Nxe4 {[%clk 0:04:32.4]} 12...
Nxe4 {[%clk 0:04:08.8]} 13. Bxe4 {[%clk 0:04:31.8]} 13... Bxe4 {[%clk 0:04:07]}
14. Qxe4 {[%clk 0:04:31.7]} 14... c5 {[%clk 0:04:05.3]} 15. Be3 {[%clk
0:04:11.4]} 15... Rac8 {[%clk 0:03:56]} 16. b3 {[%clk 0:04:06.8]} 16... Rfd8
{[%clk 0:03:38.6]} 17. Rad1 {[%clk 0:04:02.3]} 17... Qe7 {[%clk 0:03:37]} 18. d5
{[%clk 0:03:50.6]} 18... exd5 {[%clk 0:03:26.3]} 19. Qxe7 {[%clk 0:03:49.9]}
19... Bxe7 {[%clk 0:03:25.7]} 20. cxd5 {[%clk 0:03:49.8]} 20... Rd7 {[%clk
0:03:07.4]} 21. Bf4 {[%clk 0:03:48.4]} 21... Rcd8 {[%clk 0:02:52.3]} 22. Rfe1
{[%clk 0:03:40.4]} 22... Kf8 {[%clk 0:02:49.1]} 23. d6 {[%clk 0:03:15.5]} 23...
Bxd6 {[%clk 0:02:46.6]} 24. Bxd6+ {[%clk 0:03:15.2]} 24... Rxd6 {[%clk
0:02:45.4]} 25. Rxd6 {[%clk 0:03:15.1]} 25... Rxd6 {[%clk 0:02:44.2]} 26. Re2
{[%clk 0:03:15]} 26... g6 {[%clk 0:02:30]} 27. Kg2 {[%clk 0:03:14.3]} 27... b5
{[%clk 0:02:27]} 28. Rc2 {[%clk 0:03:08.9]} 28... Rc6 {[%clk 0:02:25.4]} 29. h4
{[%clk 0:03:07.5]} 29... Ke7 {[%clk 0:02:23.7]} 30. Kf3 {[%clk 0:03:06.5]} 30...
Ke6 {[%clk 0:02:21]} 31. Ke4 {[%clk 0:03:01]} 31... f5+ {[%clk 0:02:19.6]} 32.
Ke3 {[%clk 0:02:58.4]} 32... h5 {[%clk 0:02:16.2]} 33. f4 {[%clk 0:02:56.5]}
33... a6 {[%clk 0:02:13.4]} 34. a3 {[%clk 0:02:54.7]} 34... Rc8 {[%clk
0:02:08.4]} 35. Kf3 {[%clk 0:02:46.8]} 35... c4 {[%clk 0:02:04.4]} 36. bxc4
{[%clk 0:02:35.7]} 36... Rxc4 {[%clk 0:02:04.3]} 37. Re2+ {[%clk 0:02:32.2]}
37... Kd5 {[%clk 0:01:57.3]} 38. Re5+ {[%clk 0:02:18.4]} 38... Kd6 {[%clk
0:01:55]} 39. Re3 {[%clk 0:02:06.9]} 39... a5 {[%clk 0:01:53.5]} 40. Ke2 {[%clk
0:01:56.6]} 40... b4 {[%clk 0:01:49.3]} 41. Kd2 {[%clk 0:01:50.3]} 41... bxa3
{[%clk 0:01:41.1]} 42. Rxa3 {[%clk 0:01:46.6]} 42... a4 {[%clk 0:01:40.6]} 43.
Kd3 {[%clk 0:01:45]} 43... Rb4 {[%clk 0:01:38.8]} 44. Kc3 {[%clk 0:01:42.9]}
44... Re4 {[%clk 0:01:37.7]} 45. Kd3 {[%clk 0:01:42.4]} 45... Kd5 {[%clk
0:01:36.5]} 46. Rc3 {[%clk 0:01:39]} 46... Rd4+ {[%clk 0:01:34.5]} 47. Ke3
{[%clk 0:01:38.1]} 47... Rb4 {[%clk 0:01:33.1]} 48. Rc8 {[%clk 0:01:26.9]} 48...
Rb3+ {[%clk 0:01:30.5]} 49. Kf2 {[%clk 0:01:24.3]} 49... a3 {[%clk 0:01:19.7]}
50. Ra8 {[%clk 0:01:18]} 50... Kc4 {[%clk 0:01:18.6]} 51. Ra6 {[%clk 0:01:15]}
51... Kc3 {[%clk 0:01:16.1]} 52. Rxg6 {[%clk 0:01:09.5]} 52... Kb2 {[%clk
0:01:14.5]} 0-1

[Event "Live Chess"]
[Site "Chess.com"]
[Date "2024.06.01"]
[Round "-"]
[White "hapehansen"]
[Black "GEMdzq"]
[Result "0-1"]
[WhiteElo "2239"]
[BlackElo "2326"]
[TimeControl "300"]
[EndTime "10:39:23 PDT"]
[Termination "GEMdzq won by resignation"]

1. Nf3 {[%clk 0:04:55.4]} 1... c5 {[%clk 0:04:56.8]} 2. c4 {[%clk 0:04:53.7]}
2... Nf6 {[%clk 0:04:54.9]} 3. Nc3 {[%clk 0:04:51.4]} 3... g6 {[%clk 0:04:46]}
4. g3 {[%clk 0:04:48.6]} 4... Bg7 {[%clk 0:04:45.2]} 5. Bg2 {[%clk 0:04:48.2]}
5... O-O {[%clk 0:04:44.4]} 6. O-O {[%clk 0:04:46.6]} 6... d5 {[%clk 0:04:39.6]}
7. d4 {[%clk 0:04:43.5]} 7... cxd4 {[%clk 0:04:29.8]} 8. Nxd4 {[%clk 0:04:38.6]}
8... e5 {[%clk 0:04:26.4]} 9. Nf3 {[%clk 0:04:27.9]} 9... d4 {[%clk 0:04:24.4]}
10. Nb5 {[%clk 0:04:15.5]} 10... Nc6 {[%clk 0:04:19.6]} 11. e3 {[%clk
0:04:06.3]} 11... a6 {[%clk 0:04:11.5]} 12. Na3 {[%clk 0:04:04.2]} 12... Bg4
{[%clk 0:03:37.9]} 13. h3 {[%clk 0:03:59.7]} 13... Bxf3 {[%clk 0:03:37.2]} 14.
Bxf3 {[%clk 0:03:44.3]} 14... e4 {[%clk 0:03:34.5]} 15. Bg2 {[%clk 0:03:42.8]}
15... d3 {[%clk 0:03:32.9]} 16. Nb1 {[%clk 0:03:31.1]} 16... Re8 {[%clk
0:02:58]} 17. Nd2 {[%clk 0:03:24.1]} 17... Rc8 {[%clk 0:02:29.9]} 18. Rb1 {[%clk
0:03:21.3]} 18... b5 {[%clk 0:02:10.6]} 19. b3 {[%clk 0:03:08.1]} 19... bxc4
{[%clk 0:02:08.9]} 20. bxc4 {[%clk 0:03:06]} 20... Na5 {[%clk 0:02:07.4]} 21.
Qa4 {[%clk 0:02:54.6]} 21... Nd7 {[%clk 0:02:06.5]} 22. Ba3 {[%clk 0:02:27.5]}
22... f5 {[%clk 0:01:57]} 23. Rfc1 {[%clk 0:02:08]} 23... Nc5 {[%clk 0:01:24.7]}
24. Bxc5 {[%clk 0:01:44.9]} 24... Rxc5 {[%clk 0:01:24.6]} 25. Qb4 {[%clk
0:01:36.8]} 25... Qc7 {[%clk 0:01:16.7]} 26. Qb6 {[%clk 0:01:26.1]} 26... Rc8
{[%clk 0:01:15.3]} 27. Qe6+ {[%clk 0:01:16.2]} 27... Qf7 {[%clk 0:01:05]} 28.
Qxf7+ {[%clk 0:01:09.3]} 28... Kxf7 {[%clk 0:01:04.9]} 29. f3 {[%clk 0:01:08.6]}
29... Nxc4 {[%clk 0:01:01]} 30. Nb3 {[%clk 0:01:03.4]} 30... R5c7 {[%clk
0:00:23.2]} 31. fxe4 {[%clk 0:01:01.4]} 31... Nxe3 {[%clk 0:00:22.4]} 32. Rxc7+
{[%clk 0:00:57.7]} 32... Rxc7 {[%clk 0:00:22.3]} 33. exf5 {[%clk 0:00:55.4]}
33... gxf5 {[%clk 0:00:19.7]} 34. Bf3 {[%clk 0:00:51.4]} 34... Rc2 {[%clk
0:00:18.6]} 35. a4 {[%clk 0:00:44.1]} 35... Bc3 {[%clk 0:00:17.3]} 36. Rc1
{[%clk 0:00:39.3]} 36... d2 {[%clk 0:00:14.9]} 37. Rxc2 {[%clk 0:00:36.7]} 37...
Nxc2 {[%clk 0:00:14.8]} 38. Kf1 {[%clk 0:00:35]} 38... Ne3+ {[%clk 0:00:13.7]}
39. Kf2 {[%clk 0:00:32.6]} 39... d1=Q {[%clk 0:00:13.6]} 40. Bxd1 {[%clk
0:00:31.1]} 40... Nxd1+ {[%clk 0:00:13.5]} 41. Ke2 {[%clk 0:00:29.7]} 41... Nb2
{[%clk 0:00:12.8]} 42. Nc5 {[%clk 0:00:28]} 42... a5 {[%clk 0:00:10.9]} 43. g4
{[%clk 0:00:26.3]} 43... fxg4 {[%clk 0:00:08.9]} 44. hxg4 {[%clk 0:00:26.2]}
44... Bb4 {[%clk 0:00:07.8]} 45. Ne4 {[%clk 0:00:24.3]} 45... Nxa4 {[%clk
0:00:07.5]} 46. Kd3 {[%clk 0:00:22.9]} 46... Nc5+ {[%clk 0:00:07.4]} 47. Nxc5
{[%clk 0:00:21.7]} 47... Bxc5 {[%clk 0:00:07.3]} 48. Kc4 {[%clk 0:00:20]} 48...
Bb4 {[%clk 0:00:07.2]} 49. Kb3 {[%clk 0:00:19.2]} 49... Kg6 {[%clk 0:00:07.1]}
50. Ka4 {[%clk 0:00:18.2]} 50... Kg5 {[%clk 0:00:07]} 51. Kb3 {[%clk 0:00:17.8]}
51... Kxg4 {[%clk 0:00:06.9]} 52. Ka4 {[%clk 0:00:17]} 52... h5 {[%clk
0:00:06.8]} 0-1

[Event "Live Chess"]
[Site "Chess.com"]
[Date "2024.06.01"]
[Round "-"]
[White "bill77678"]
[Black "Richardallis"]
[Result "0-1"]
[WhiteElo "1823"]
[BlackElo "1966"]
[TimeControl "300"]
[EndTime "10:39:23 PDT"]
[Termination "Richardallis won by resignation"]

1. e4 {[%clk 0:04:58.3]} 1... d5 {[%clk 0:04:40]} 2. exd5 {[%clk 0:04:56.7]}
2... Nf6 {[%clk 0:04:38.6]} 3. d4 {[%clk 0:04:55.1]} 3... Nxd5 {[%clk
0:04:37.2]} 4. Nf3 {[%clk 0:04:40.7]} 4... c6 {[%clk 0:04:34.7]} 5. Be2 {[%clk
0:04:38.1]} 5... Bg4 {[%clk 0:04:33.8]} 6. O-O {[%clk 0:04:36.9]} 6... e6 {[%clk
0:04:32.9]} 7. c4 {[%clk 0:04:35.7]} 7... Nf6 {[%clk 0:04:31.9]} 8. Nc3 {[%clk
0:04:34.5]} 8... Bd6 {[%clk 0:04:30.9]} 9. Bg5 {[%clk 0:04:30.9]} 9... Nbd7
{[%clk 0:04:29.9]} 10. Ne4 {[%clk 0:04:28.8]} 10... Be7 {[%clk 0:04:28.9]} 11.
Nxf6+ {[%clk 0:04:19.1]} 11... Nxf6 {[%clk 0:04:27.9]} 12. Re1 {[%clk
0:04:02.4]} 12... h6 {[%clk 0:04:25.7]} 13. Bh4 {[%clk 0:03:57.2]} 13... O-O
{[%clk 0:04:23.9]} 14. Qd2 {[%clk 0:03:45.7]} 14... Ne4 {[%clk 0:04:21.3]} 15.
Bxe7 {[%clk 0:03:41.5]} 15... Nxd2 {[%clk 0:04:16.1]} 16. Bxd8 {[%clk
0:03:36.6]} 16... Bxf3 {[%clk 0:04:13.8]} 17. gxf3 {[%clk 0:03:27.5]} 17...
Rfxd8 {[%clk 0:04:11.5]} 0-1

[Event "Live Chess"]
[Site "Chess.com"]
[Date "2024.06.01"]
[Round "-"]
[White "NeilDruggan73"]
[Black "defenderalist"]
[Result "0-1"]
[WhiteElo "1739"]
[BlackElo "1509"]
[TimeControl "300"]
[EndTime "10:39:28 PDT"]
[Termination "defenderalist won on time"]

1. d4 {[%clk 0:04:56.2]} 1... Nf6 {[%clk 0:04:59.3]} 2. Bg5 {[%clk 0:04:54.2]}
2... e6 {[%clk 0:04:57.1]} 3. e4 {[%clk 0:04:51.7]} 3... Be7 {[%clk 0:04:55.5]}
4. e5 {[%clk 0:04:49.9]} 4... Nd5 {[%clk 0:04:54.4]} 5. Bxe7 {[%clk 0:04:48.5]}
5... Nxe7 {[%clk 0:04:54.3]} 6. Nf3 {[%clk 0:04:46.4]} 6... d6 {[%clk
0:04:53.4]} 7. Bd3 {[%clk 0:04:22.2]} 7... Nbc6 {[%clk 0:04:51.2]} 8. c3 {[%clk
0:04:16.1]} 8... dxe5 {[%clk 0:04:49.5]} 9. dxe5 {[%clk 0:04:13.6]} 9... Bd7
{[%clk 0:04:41.3]} 10. O-O {[%clk 0:04:11.9]} 10... O-O {[%clk 0:04:38]} 11. Ng5
{[%clk 0:04:09.5]} 11... Ng6 {[%clk 0:04:34.7]} 12. Qh5 {[%clk 0:04:04.6]} 12...
h6 {[%clk 0:04:13.8]} 13. f4 {[%clk 0:03:59.6]} 13... hxg5 {[%clk 0:04:04.4]}
14. Rf3 {[%clk 0:03:49.2]} 14... Be8 {[%clk 0:03:26.8]} 15. Rh3 {[%clk
0:03:43.5]} 15... f5 {[%clk 0:03:25.9]} 16. exf6 {[%clk 0:03:31.8]} 16... Qxf6
{[%clk 0:03:10.8]} 17. Qh7+ {[%clk 0:02:04.6]} 17... Kf7 {[%clk 0:03:04.6]} 18.
Nd2 {[%clk 0:01:57.1]} 18... Rh8 {[%clk 0:02:47.4]} 19. Bxg6+ {[%clk 0:01:54.1]}
19... Qxg6 {[%clk 0:02:04.7]} 20. Qxh8 {[%clk 0:01:36.8]} 20... Rd8 {[%clk
0:01:59.1]} 21. fxg5 {[%clk 0:01:25.7]} 21... Rxd2 {[%clk 0:01:46.4]} 22. Rf1+
{[%clk 0:01:03.2]} 22... Ke7 {[%clk 0:01:45.4]} 23. Qf8+ {[%clk 0:01:01.3]}
23... Kd8 {[%clk 0:01:34]} 24. b4 {[%clk 0:00:39.5]} 24... Ne7 {[%clk
0:01:18.1]} 25. Qf4 {[%clk 0:00:28.2]} 25... Nd5 {[%clk 0:00:52.8]} 26. Qc4
{[%clk 0:00:19]} 26... a6 {[%clk 0:00:41.6]} 27. a4 {[%clk 0:00:16.9]} 27...
Bxa4 {[%clk 0:00:29.1]} 28. Qc5 {[%clk 0:00:14]} 28... Bc6 {[%clk 0:00:24.3]}
29. Rf8+ {[%clk 0:00:12.4]} 29... Kd7 {[%clk 0:00:18.2]} 30. Rf1 {[%clk
0:00:11.2]} 30... Nxc3 {[%clk 0:00:12.1]} 31. b5 {[%clk 0:00:09.3]} 31... Rxg2+
{[%clk 0:00:10.3]} 32. Kh1 {[%clk 0:00:07.2]} 32... Qe4 {[%clk 0:00:08.7]} 33.
bxc6+ {[%clk 0:00:06.2]} 33... bxc6 {[%clk 0:00:06.6]} 34. Qg1 {[%clk
0:00:04.1]} 34... Rxg1+ {[%clk 0:00:05.7]} 35. Kxg1 {[%clk 0:00:03.7]} 35...
Ne2+ {[%clk 0:00:05.1]} 36. Kf2 {[%clk 0:00:00.6]} 36... Nd4 {[%clk 0:00:03.9]}
37. Rd1 {[%clk 0:00:00.2]} 37... Qe2+ {[%clk 0:00:02.9]} 0-1

[Event "Live Chess"]
[Site "Chess.com"]
[Date "2024.06.01"]
[Round "-"]
[White "mychess51"]
[Black "viktorskliarov"]
[Result "0-1"]
[WhiteElo "1855"]
[BlackElo "2643"]
[TimeControl "300"]
[EndTime "10:39:45 PDT"]
[Termination "viktorskliarov won on time"]

1. d4 {[%clk 0:04:55.4]} 1... Nf6 {[%clk 0:04:59]} 2. Nf3 {[%clk 0:04:53.9]}
2... g6 {[%clk 0:04:58.2]} 3. g3 {[%clk 0:04:53.4]} 3... Bg7 {[%clk 0:04:57.8]}
4. Bg2 {[%clk 0:04:53]} 4... O-O {[%clk 0:04:57.7]} 5. O-O {[%clk 0:04:52.4]}
5... c6 {[%clk 0:04:57.6]} 6. c4 {[%clk 0:04:51.7]} 6... d5 {[%clk 0:04:57]} 7.
Nc3 {[%clk 0:04:51.4]} 7... dxc4 {[%clk 0:04:54]} 8. Re1 {[%clk 0:04:51.3]} 8...
Nd5 {[%clk 0:04:41.7]} 9. e4 {[%clk 0:04:51.2]} 9... Nxc3 {[%clk 0:04:39.4]} 10.
bxc3 {[%clk 0:04:48.5]} 10... b5 {[%clk 0:04:38.9]} 11. a3 {[%clk 0:04:35.8]}
11... Nd7 {[%clk 0:04:27.8]} 12. Bf4 {[%clk 0:04:30.4]} 12... Bb7 {[%clk
0:04:26.1]} 13. Qd2 {[%clk 0:04:28.7]} 13... e6 {[%clk 0:04:17.5]} 14. Bh6
{[%clk 0:04:24.6]} 14... c5 {[%clk 0:04:13.7]} 15. Bxg7 {[%clk 0:04:20.9]} 15...
Kxg7 {[%clk 0:04:12.8]} 16. Rad1 {[%clk 0:04:11.3]} 16... Qf6 {[%clk 0:03:58.6]}
17. e5 {[%clk 0:03:38]} 17... Qe7 {[%clk 0:03:52]} 18. Qe3 {[%clk 0:03:36.3]}
18... cxd4 {[%clk 0:03:48.6]} 19. cxd4 {[%clk 0:03:31.7]} 19... Nb6 {[%clk
0:03:46.7]} 20. Rb1 {[%clk 0:03:13.1]} 20... Nd5 {[%clk 0:03:40.8]} 21. Qc1
{[%clk 0:03:11.2]} 21... a6 {[%clk 0:03:34.4]} 22. a4 {[%clk 0:03:00.9]} 22...
Bc6 {[%clk 0:03:31.8]} 23. h4 {[%clk 0:02:48.2]} 23... h6 {[%clk 0:03:26]} 24.
Nh2 {[%clk 0:02:43.5]} 24... Rac8 {[%clk 0:03:14.8]} 25. Bxd5 {[%clk 0:02:34.3]}
25... Bxd5 {[%clk 0:03:12.6]} 26. Ng4 {[%clk 0:02:33]} 26... Rh8 {[%clk
0:03:12.2]} 27. Nf6 {[%clk 0:02:31.1]} 27... b4 {[%clk 0:03:09.5]} 28. h5 {[%clk
0:02:26.9]} 28... c3 {[%clk 0:03:03.8]} 29. hxg6 {[%clk 0:02:22.6]} 29... fxg6
{[%clk 0:03:03.7]} 30. Nxd5 {[%clk 0:01:47.6]} 30... exd5 {[%clk 0:02:58.5]} 31.
Qc2 {[%clk 0:01:42.9]} 31... a5 {[%clk 0:02:39.1]} 32. e6 {[%clk 0:01:23.6]}
32... Rhf8 {[%clk 0:02:35.3]} 33. Re5 {[%clk 0:01:20.1]} 33... Rcd8 {[%clk
0:02:34]} 34. Qb3 {[%clk 0:01:06.5]} 34... Rf6 {[%clk 0:02:27]} 35. Rbe1 {[%clk
0:00:43.6]} 35... Rd6 {[%clk 0:02:23.8]} 36. Rxd5 {[%clk 0:00:29]} 36... Rfxe6
{[%clk 0:02:18]} 37. Rde5 {[%clk 0:00:22.6]} 37... Rxe5 {[%clk 0:02:05.7]} 38.
Rxe5 {[%clk 0:00:19.4]} 38... Qc7 {[%clk 0:02:04.6]} 39. Rc5 {[%clk 0:00:04.2]}
39... Rc6 {[%clk 0:02:03.8]} 0-1